Workbook

Sheet المقايسة واولوية العطاءات
B8: الصفا | F8: السعداء
B9: البند | C9: الفئة | D9: الكمية | E9: القيمة | F9: الفئة | G9: القيمة
E10: =+D10*C10 -> 0 | G10: =+F10*D10 -> 0
E11: =+D11*C11 -> 0 | G11: =+F11*D11 -> 0
E12: 0 | G12: 0
E13: 0 | G13: 0
E14: 0 | G14: 0
E15: 0 | G15: 0
E16: 0 | G16: 0
E17: 0 | G17: 0
E18: 0 | G18: 0
E19: 0 | G19: 0
E20: 0 | G20: 0
E21: 0 | G21: 0
E22: 0 | G22: 0
E23: 0 | G23: 0
E24: 0 | G24: 0
E25: 0 | G25: 0
E26: 0 | G26: 0
E27: 0 | G27: 0
E28: 0 | G28: 0
E29: 0 | G29: 0
E30: 0 | G30: 0
E31: 0 | G31: 0
E32: 0 | G32: 0
E33: 0 | G33: 0
E34: 0 | G34: 0
E35: 0 | G35: 0
E36: 0 | G36: 0
E37: 0 | G37: 0
E38: 0 | G38: 0
E39: 0 | G39: 0
E40: 0 | G40: 0
E41: 0 | G41: 0
E42: 0 | G42: 0
E43: 0 | G43: 0
E44: 0 | G44: 0
E45: 0 | G45: 0
E46: 0 | G46: 0
E47: 0 | G47: 0
E48: 0 | G48: 0
E49: 0 | G49: 0
E50: 0 | G50: 0
E51: 0 | G51: 0
E52: 0 | G52: 0
E53: 0 | G53: 0
E54: 0 | G54: 0
E55: 0 | G55: 0
E56: 0 | G56: 0
E57: 0 | G57: 0
E58: 0 | G58: 0
E59: 0 | G59: 0
E60: 0 | G60: 0
E61: 0 | G61: 0
E62: 0 | G62: 0
E63: 0 | G63: 0
E64: 0 | G64: 0
E65: 0 | G65: 0
E66: 0 | G66: 0
E67: 0 | G67: 0
E68: 0 | G68: 0
E69: 0 | G69: 0
E70: 0 | G70: 0
E71: 0 | G71: 0
E72: 0 | G72: 0
E73: 0 | G73: 0
E74: 0 | G74: 0
E75: =+D75*C75 -> 0 | G75: =+F75*D75 -> 0
E76: 0 | G76: 0
E77: 0 | G77: 0
E78: 0 | G78: 0
E79: 0 | G79: 0
E80: 0 | G80: 0
E81: 0 | G81: 0
E82: 0 | G82: 0
E83: 0 | G83: 0
E84: 0 | G84: 0
E85: 0 | G85: 0
E86: 0 | G86: 0
E87: 0 | G87: 0
E88: 0 | G88: 0
E89: 0 | G89: 0
E90: 0 | G90: 0
E91: 0 | G91: 0
E92: 0 | G92: 0
E93: 0 | G93: 0
E94: 0 | G94: 0
E95: 0 | G95: 0
E96: 0 | G96: 0
E97: 0 | G97: 0
E98: 0 | G98: 0
E99: 0 | G99: 0
E100: 0 | G100: 0
E101: 0 | G101: 0
E102: 0 | G102: 0
E103: 0 | G103: 0
E104: 0 | G104: 0
E105: 0 | G105: 0
E106: 0 | G106: 0
E107: 0 | G107: 0
E108: 0 | G108: 0
E109: 0 | G109: 0
E110: 0 | G110: 0
E111: 0 | G111: 0
E112: 0 | G112: 0
E113: 0 | G113: 0
E114: 0 | G114: 0
E115: 0 | G115: 0
E116: 0 | G116: 0
E117: 0 | G117: 0
E118: 0 | G118: 0
E119: 0 | G119: 0
E120: 0 | G120: 0
E121: 0 | G121: 0
E122: 0 | G122: 0
E123: 0 | G123: 0
E124: 0 | G124: 0
E125: 0 | G125: 0
E126: 0 | G126: 0
E127: 0 | G127: 0
E128: 0 | G128: 0
E129: 0 | G129: 0
E130: 0 | G130: 0
E131: 0 | G131: 0
E132: 0 | G132: 0
E133: 0 | G133: 0
E134: 0 | G134: 0
E135: 0 | G135: 0
E136: 0 | G136: 0
E137: 0 | G137: 0
E138: 0 | G138: 0
E139: =+D139*C139 -> 0 | G139: =+F139*D139 -> 0
E140: 0 | G140: 0
E141: 0 | G141: 0
E142: 0 | G142: 0
E143: 0 | G143: 0
E144: 0 | G144: 0
E145: 0 | G145: 0
E146: 0 | G146: 0
E147: 0 | G147: 0
E148: 0 | G148: 0
E149: 0 | G149: 0
E150: 0 | G150: 0
E151: 0 | G151: 0
E152: 0 | G152: 0
E153: 0 | G153: 0
E154: 0 | G154: 0
E155: 0 | G155: 0
E156: 0 | G156: 0
E157: 0 | G157: 0
E158: 0 | G158: 0
E159: 0 | G159: 0
E160: 0 | G160: 0
E161: 0 | G161: 0
E162: 0 | G162: 0
E163: 0 | G163: 0
E164: 0 | G164: 0
E165: 0 | G165: 0
E166: 0 | G166: 0
E167: 0 | G167: 0
E168: 0 | G168: 0
E169: 0 | G169: 0
E170: 0 | G170: 0
E171: 0 | G171: 0
E172: 0 | G172: 0
E173: 0 | G173: 0
E174: 0 | G174: 0
E175: 0 | G175: 0
E176: 0 | G176: 0
E177: 0 | G177: 0
E178: 0 | G178: 0
E179: 0 | G179: 0
E180: 0 | G180: 0
E181: 0 | G181: 0
E182: 0 | G182: 0
E183: 0 | G183: 0
E184: 0 | G184: 0
E185: 0 | G185: 0
E186: 0 | G186: 0
E187: 0 | G187: 0
E188: 0 | G188: 0
E189: 0 | G189: 0
E190: 0 | G190: 0
E191: 0 | G191: 0
E192: 0 | G192: 0
E193: 0 | G193: 0
E194: 0 | G194: 0
E195: 0 | G195: 0
E196: 0 | G196: 0
E197: 0 | G197: 0
E198: 0 | G198: 0
E199: 0 | G199: 0
E200: 0 | G200: 0
E201: 0 | G201: 0
B202: الاجمالي | E202: =SUM(E10:E201) -> 0 | G202: =SUM(G10:G201) -> 0
B203: الإجمالي بعد خصم نص العقد 2.5% | E203: =+E202*0.975 -> 0

Sheet الدفتر
B2: إحلال وتجديد عدد 2 كوبري علي ترعة النوبارية بمركز أبو المطامير | F2: متحفظ ( حديد بانواعه - اسمنت - بتومين - سولار )
H3: تاريخ الفتح الفني | I3: 2017-02-14
F4: نسبة التأمينات | H4: محملات | I4: كمبيوتر + طابعة + كراسي + استبلايزر+ مشترك +UPS | K4: او خصم 30000ج
A5: تاريخ العقد | F5: غرامات
A6: 2018-06-04 | B6: رقم العقد | D6: 111 / 2017 / 2018 | F6: المهندس | G6: 500 ج يوميا
B7: قيمة العقد | D7: 44934600 | F7: المراقب | G7: 250 ج يوميا
B8: مدة العملية | D8: 12 شهر | F8: مكتب اشراف | G8: 400 ج يوميا
B9: تاريخ استلام الموقع | D9: 2018-11-22 | F9: وجبات | G9: 250 ج يوميا
B10: تاريخ النهو | D10: 2019-11-21 | F10: العلامات الارشادية والتحذيرية والسور | G10: 500 ج يوميا
B11: قيمة اخر مقايسة | F11: نقل العينات | G11: 600 ج يوميا
B12: قيمة اخر مقايسة | F12: التقارير | G12: 9000 ج شهريا
B13: قيمة اخر مقايسة | F13: المهندس استشاري | G13: 500 ج يوميا
B15: تاريخ النهو
B17: انشاء كوبري وادي حجول 2
B18: م | C18: قيمة الاعمال التي تمت | D18: قيمة المستخلص | E18: تاريخ الصرف | F18: ضمان اعمال | G18: مصلحة الضرائب | K18: دفعة مقدمة | L18: ارصدة متنوعة دائنة متنوعة | X18: الايرادات | AM18: جملة الاستقطاعات | AN18: الصافي | AR18: ملاحظات
G19: دمغات | H19: ض م 10% الخاصة بالمعامل | I19: اتساع وتنمية | J19: أ ت ص | L19: محاجر | M19: مهن هندسية | N19: تعلية | O19: تعلية | P19: تعلية | Q19: تعلية | R19: تعلية | S19: تعلية | T19: تعلية | U19: تعلية | V19: تعلية | W19: تعلية | X19: غرامات وتعويضات | AH19: ايرادات متنوعة | AI19: موارد ذاتية | AL19: اخري | AN19: الضرائب | AO19: تأمينات | AP19: وحدة العمالة | AQ19: المستحق للمقاول
X20: غرامة تأخير | Y20: مهندس | Z20: مدير المشروع | AA20: علامات ارشادية | AB20: مكتب الاشراف | AC20: وجبات | AD20: استراحة | AE20: تقارير | AF20: تعليمات الامن الصناعي | AG20: المعدات | AH20: مصاريف ادارية | AI20: رسوم معمل | AJ20: مصاريف معمل | AK20: تصنيع علامات
B21: =+#REF! ->  | C21: =+#REF! ->  | D21: =+#REF! ->  | E21: =+#REF! ->  | F21: =+#REF! ->  | G21: =+#REF! ->  | H21: =+#REF! ->  | I21: =+#REF! ->  | J21: =+#REF! ->  | K21: =+#REF! ->  | L21: =+#REF! ->  | M21: =+#REF! ->  | N21: =+#REF! ->  | O21: =+#REF! ->  | P21: =+#REF! ->  | Q21: =+#REF! ->  | R21: =+#REF! ->  | S21: =+#REF! ->  | T21: =+#REF! ->  | U21: =+#REF! ->  | V21: =+#REF! ->  | W21: =+#REF! ->  | X21: =+#REF! ->  | Y21: =+#REF! ->  | Z21: =+#REF! ->  | AA21: =+#REF! ->  | AB21: =+#REF! ->  | AC21: =+#REF! ->  | AD21: =+#REF! ->  | AE21: =+#REF! ->  | AF21: =+#REF! ->  | AG21: =+#REF! ->  | AH21: =+#REF! ->  | AI21: =+#REF! ->  | AJ21: =+#REF! ->  | AK21: =+#REF! ->  | AL21: =+#REF! ->  | AM21: =+#REF! ->  | AN21: =+#REF! ->  | AO21: =+#REF! ->  | AP21: =+#REF! ->  | AQ21: =+#REF! ->  | AR21: =+#REF! -> 
C41: الاجمالي | D41: =SUM(D21:D40) ->  | E41: 0 | F41: =SUM(F21:F40) -> 

Sheet مستخلص 2
C2: م ( ) أعمال | K2: شركة
I3: تاريخ الفتح الفني
G4: نسبة التأمينات | I4: محملات | J4: لا يوجد
B5: تاريخ العقد | G5: غرامات
B6: 2022-02-24 | C6: رقم العقد | E6: 440/2022/2023 | G6: المهندس | H6: 500 ج يوميا
C7: قيمة العقد | E7: 18870370 | G7: مساعد المهندس
C8: مدة العملية | E8: 6 شهور | G8: مكتب اشراف
C9: تاريخ استلام الموقع | E9: 2022-10-05 | G9: وجبات
C10: تاريخ النهو | E10: 2023-04-04 | G10: العلامات الارشادية والتحذيرية والسور
C11: قيمة اخر مقايسة | G11: تجهيزات موقع العمل
C12: قيمة اخر مقايسة
C13: قيمة اخر مقايسة
C15: تاريخ النهو
C19: من | G19: =G31+G32 -> 0 | H19: =G22+G23+G24+G25+G26+G27+G28+G29+G30 -> 8922726.25 | J19: حتي
C20: =E9 -> 2022-10-05 | J20: 2022-10-13
B21: مقايسة | C21: السعر | D21: السابق | E21: الحالي | F21: الاجمالي | G21: قيمة اجمالي الاعمال | H21: الاستقطاع | I21: الصافي | J21: التحقيق | O21: الاسعار | P21: كميات المستخلص | Q21: كميات المقايسة | R21: الفرق
C22: 27.75 | D22: 17939 | F22: =+E22+D22 -> 17939 | G22: =+F22*C22 -> 497807.25 | I22: =+G22-H22 -> 497807.25 | J22: =+E22*C22 -> 0 | K22: =B22*C22 -> 0
C23: 143 | D23: 17939 | F23: 17939 | G23: 2565277 | I23: 2565277 | J23: 0 | K23: 0
C24: 9.25 | D24: 0 | E24: 38900 | F24: 38900 | G24: 359825 | I24: 359825 | J24: 359825 | K24: 0
C25: 137 | D25: 0 | E25: 38900 | F25: 38900 | G25: 5329300 | I25: 5329300 | J25: 5329300 | K25: 0
D26: 0 | F26: 0 | G26: 0 | I26: 0 | J26: 0 | K26: 0
D27: 0 | F27: 0 | G27: =C27*F27 -> 0 | I27: 0 | J27: 0 | K27: 0
B28: كارتات | C28: 3 | D28: 17939 | F28: 17939 | G28: 53817 | I28: 53817 | J28: 0
C29: 3 | E29: 38900 | F29: 38900 | G29: 116700 | I29: 116700 | J29: 116700 | K29: 0
F30: 0 | G30: 0 | I30: 0 | J30: 0 | K30: 0
F31: 0 | G31: 0 | I31: 0 | J31: 0 | K31: 0
F32: 0 | G32: 0 | I32: 0 | J32: 0 | K32: 0
F33: 0 | G33: 0 | H33: =G33*0.25 -> 0 | I33: 0 | J33: 0 | K33: 0
F34: 0 | G34: 0 | I34: 0 | J34: 0 | K34: 0
F35: 0 | G35: 0 | I35: 0 | J35: 0 | K35: 0
F36: 0 | G36: 0 | I36: 0 | J36: 0 | K36: 0
F37: 0 | G37: 0 | H37: =G37*0.25 -> 0 | I37: 0 | J37: 0 | K37: 0
A38: كارتات | F38: 0 | G38: 0 | I38: 0 | J38: 0 | K38: 0
F39: 0 | G39: 0 | I39: 0 | J39: 0 | K39: 0
F40: 0 | G40: 0 | I40: 0 | J40: 0 | K40: 0
C41: اجمالي الاعمال | G41: =SUM(G22:G40) -> 8922726.25 | I41: =G41-H41 -> 8922726.25 | J41: =SUM(J22:J40) -> 5805825 | K41: =SUM(K22:K40) -> 
G42: تخفيض 1% | H42: =I41*1% -> 89227.2625 | M42: =+J41 -> 5805825 | N42: التحقيق
D43: اجمالي الاعمال | I43: =I41-H42 -> 8833498.988 | N43: 0 | O43: الاستقطاعات السابقة | U43: م | V43: قيمة الاعمال التي تمت | W43: قيمة المستخلص | X43: تاريخ الصرف | Y43: ضمان اعمال | Z43: مصلحة الضرائب | AD43: =+D60 -> دفعة مقدمة | AE43: ارصدة متنوعة دائنة متنوعة | AQ43: الايرادات | BF43: جملة الاستقطاعات | BG43: الصافي | BK43: ملاحظات
F44: تعلية 5% لحين الاستلام | G44: =ROUND(I43*5%,1) -> 441674.9 | N44: =+H41 -> 0 | O44: الاستقطاعات الحالية | Z44: دمغات | AA44: ض م 10% الخاصة بالمعامل | AB44: اتساع وتنمية | AC44: أ ت ص | AE44: =+D61 -> محاجر | AF44: =+D62 -> مهن هندسية | AG44: =+D63 -> تعليه التأمينات | AH44: =+D64 -> تعلي لحين ورود نتائج الاختبارات | AI44: =+D65 -> تعلية 5 % لحين الاستلام | AJ44: =+D66 -> تعلية توريد ماسح ضوئي | AK44: =+D67 -> تعلية | AL44: =+D68 -> تعليه لحين انهاء الاختبارات | AM44: =+D69 -> تأمينات للغيرتأمين نهائي عملية القطار السريع اتجاه العاصمة الإدارية | AN44: =+D70 -> تعلي | AO44: =+D71 -> تعلي | AP44: =+D72 -> تعلي | AQ44: غرامات وتعويضات | BA44: ايرادات متنوعة | BB44: موارد ذاتية | BE44: =+D87 -> اخري | BG44: الضرائب | BH44: تأمينات | BI44: وحدة العمالة | BJ44: المستحق للمقاول
F45: الأعمال | H45: =MROUND(I43-G44,1) -> 8391824 | M45: =+N43-N44 -> 0 | N45: صافي الاستقطاع | AQ45: =+D73 -> غرامة تأخير | AR45: =+D74 -> مهندس | AS45: =+D75 -> مدير المشروع | AT45: =+D76 -> علامات ارشادية وتحذيرية | AU45: =+D77 -> خصم سيارة | AV45: =+D78 -> خصم بوليصة تأمين | AW45: =+D79 -> استراحة | AX45: =+D80 -> تقارير | AY45: =+D81 -> تعليمات الامن الصناعي | AZ45: =+D82 -> معدات | BA45: =+D83 -> م . أ معامل | BB45: =+D84 -> رسوم معمل | BC45: =+D85 -> مصاريف معمل | BD45: =+D86 -> تصنيع علامات
C46: =H45 -> 8391824 | D46: اجمالي الاعمال | M46: =+M42+M45 -> 5805825 | N46: الاجمالي | U46: 1 | V46: =+C46 -> 8391824 | W46: =+C48 -> 0 | X46: 2019-02-17 | Y46: =+C54 -> 273018.9 | Z46: =+C55 -> 125205 | AA46: =+C56 -> 0 | AB46: =+C58 -> 0 | AC46: =+C59 -> 52004 | AD46: =+C60 -> 0 | AE46: =+C61 -> 0 | AF46: =+C62 -> 0 | AG46: =+C63 -> 142359.9 | AH46: =+C64 -> 0 | AI46: =+C65 -> 0 | AJ46: =+C66 -> 0 | AK46: =+C67 -> 0 | AL46: =+C68 -> 0 | AM46: =+C69 -> 0 | AN46: =+C70 -> 0 | AO46: =+C71 -> 0 | AP46: =+C72 -> 0 | AQ46: =+E73 -> 0 | AR46: =+C74 -> 0 | AS46: =+C75 -> 0 | AT46: =+C76 -> 0 | AU46: =+C77 -> 0 | AV46: =+C78 -> 0 | AW46: =+C79 -> 0 | AX46: =+C80 -> 0 | AY46: =+C81 -> 0 | AZ46: =+C82 -> 0 | BA46: =+C83 -> 0 | BB46: =+C84 -> 0 | BC46: =+C85 -> 0 | BD46: =+C86 -> 0 | BE46: =+C87 -> 0 | BF46: =SUM(Y46:BE46) -> 592587.8 | BG46: =+C92 -> 260018 | BH46: =+C93 -> 0 | BI46: =+C94 -> 0 | BJ46: =+C95 -> 4607772.2
C47: 2931446 | D47: الاعمال السابقة | M47: =+M46-C48 -> 5805825 | N47: نتيجة التحقيق
B51: 2665807 | C51: =C46-C47 -> 5460378 | D51: قيمة المستخلص
L52: قيمة المستخلص | M52: التأمينات | O52: القيمة الفعلية
C53: الاستقطاعات | J53: =+K53-O53 -> 0 | K53: =+L53/1.05*2.16% -> 0 | L53: =+C48 -> 0 | M53: 2.16 | P53: =+O53-K53 -> 0
C54: =ROUND((C51*0.05),1) -> 273018.9 | D54: ضمان اعمال | J54: =+K54-O54 -> 0 | K54: =+L54/1.05*3.6% -> 0 | P54: =+O54-K54 -> 0
C55: =ROUND((((C51-10050-C92)*2.4%)+638),0) -> 125205 | D55: دمغات | J55: =+K55-O55 -> 0 | K55: =+L55/1.05*4.5% -> 0 | P55: 0
D56: ض م 14% معامل | P56: 0
D57: اتساع
D58: تنمية
B59: =ROUND(((C51-C92)*1%),0) -> 52004 | C59: =B59 -> 52004 | D59: ا ت ص 1% | L59: =SUM(L53:L58) -> 0 | O59: =SUM(O53:O58) -> 0
D60: دفعة مقدمة | L60: =+L59-C48 -> 0
D61: محاجر
D62: مهن هندسية
C63: =ROUND((C51*2.7375%/1.05),1) -> 142359.9 | D63: تعليه التأمينات
D64: تعلي لحين ورود نتائج الاختبارات
D65: تعلية 5 % لحين الاستلام
D66: تعلية توريد ماسح ضوئي
D67: تعلية
D68: تعليه لحين انهاء الاختبارات
D69: تأمينات للغيرتأمين نهائي عملية القطار السريع اتجاه العاصمة الإدارية
D70: تعلي
D71: تعلي
D72: تعلي
C73: 0 | D73: غرامة تأخير | E73: =ROUND((+C48*0.02),0) -> 0
D74: مهندس
D75: مدير المشروع
D76: علامات ارشادية وتحذيرية | F76: عدد ايام المستخلص | G76: =(J20-C20)+1 -> 9
B77: =G76*G77 -> 4500 | D77: خصم سيارة | F77: غرامة السيارة يوميا | G77: 500
D78: خصم بوليصة تأمين
D79: استراحة
D80: تقارير
D81: تعليمات الامن الصناعي
D82: معدات
D83: م . أ معامل | F83: المعمل
D84: رسوم معمل
D85: مصاريف معمل
D86: تصنيع علامات
D87: اخري
C88: =SUM(C54:C87) -> 592587.8 | D88: الاجمالي | F88: 254854.6 | G88: =C88-F88 -> 337733.2
C91: =C51-C88 -> 4867790.2 | D91: صافي المستخلص
C92: =ROUND((+C51/1.05*5%),1) -> 260018 | D92: مصلحة الضرائب
D93: تأمينات السويس
A94: تفجير | D94: ابوزعبل للكيماويات المتخصصة | E94: =+(C48-C92)*0.45% -> -1170.081
C95: =+C91-C92-C93-C94 -> 4607772.2 | D95: بنك المصرف المتحد
F98: الموضوع : | G98: =C2 -> م ( ) أعمال
C100: الإدارة العامة للشئون المالية | F100: المستحق له : | G100: =K2 -> شركة
C101: قيد بدفتر الصرفيات / تسويات (224) رقم بتاريخ / /
C102: الجهة الوارد منها : رقم 55 ع ح : تاريخ
C103: البيان | E103: منه | G103: له
E104: جزئي | F104: كلي | G104: جزئي | H104: كلي
C106: من ح /الدائنين | E106: =+C51 -> 5460378
D107: حياة كريمة | F107: =+E106 -> 5460378
C108: الي مذكورين
C109: ح / الدائنين
C110: مصلحة الضرائب | G110: =+C111+C112+C113+C114+C115 -> 177209
C111: =+C55 -> 125205 | D111: =+D55 -> دمغات
C112: =+C56 -> 0 | D112: =+D56 -> ض م 14% معامل
C113: =+C59 -> 52004 | D113: =+D59 -> ا ت ص 1%
C114: =C57 -> 0 | D114: اتساع
C115: =C58 -> 0 | D115: تنمية
C116: =+D54 -> ضمان اعمال | G116: =+C54 -> 273018.9
C117: =C69 -> 0 | D117: =D69 -> تأمينات للغيرتأمين نهائي عملية القطار السريع اتجاه العاصمة الإدارية | G117: =C117 -> 0
C118: ارصدة دائنة متنوعة | G118: =SUM(C119:C132) -> 142359.9
C119: =+C61 -> 0 | D119: محاجر
C120: =+C62 -> 0 | D120: مهن هندسية
C121: 142359.9 | D121: تعليه التأمينات
C122: 0 | D122: تعلي لحين ورود نتائج الاختبارات
C123: 0 | D123: تعلية 5 % لحين الاستلام
C124: 0 | D124: تعلية توريد ماسح ضوئي
C125: 0 | D125: تعلية
C126: 0 | D126: تعليه لحين انهاء الاختبارات
C127: =+C70 -> 0 | D127: تعلي
C128: 0 | D128: تعلي
C129: 0 | D129: تعلي
C130: =+C84 -> 0 | D130: رسوم معمل
C131: 0 | D131: مصاريف معمل
C132: 0 | D132: تصنيع علامات
H133: =SUM(G110:G132) -> 592587.8
D134: ح / الإيرادات
D135: غرامات وتعويضات | G135: =SUM(C136:C145) -> 0
C136: =+C73 -> 0 | D136: =+D73 -> غرامة تأخير
C137: 0 | D137: مهندس
C138: 0 | D138: مدير المشروع
C139: 0 | D139: علامات ارشادية وتحذيرية
C140: 0 | D140: خصم سيارة
C141: 0 | D141: خصم بوليصة تأمين
C142: 0 | D142: استراحة
C143: 0 | D143: تقارير
C144: 0 | D144: تعليمات الامن الصناعي
C145: 0 | D145: معدات
C146: 0 | D146: إيرادات متنوعة | G146: =SUM(C147:C148) -> 0
C147: =+C83 -> 0 | D147: =+D83 -> م . أ معامل
C148: =+C87 -> 0 | D148: =+D87 -> اخري
H149: =SUM(G135:G148) -> 0
C150: ح / امر الدفع
C151: =+C92 -> 260018 | D151: مصلحة الضرائب | G151: =SUM(C151:C154) -> 4867790.2
C152: 0 | D152: تأمينات السويس
C153: 0 | D153: ابوزعبل للكيماويات المتخصصة
C154: =+C95 -> 4607772.2 | D154: بنك المصرف المتحد
H155: =SUM(G151:G154) -> 4867790.2
F156: =SUM(F107:F155) -> 5460378 | H156: =SUM(H107:H155) -> 5460378
C157: رقم الشيك : تاريخه / / يعتمد ،،
C158: مراجع | D158: رئيس المراجعة | E158: مراقب الحسابات | F158: مدير عام الشئون المالية | G158: رئيس الإدارة المركزية للشئون المالية والإدارية
BT159: =+F156-H156 -> 0
